[Event "Sabato rapido!"]
[Site "Chess.com"]
[Date "2020.05.30"]
[Round "6"]
[White "crippo"]
[Black "Mrtre7"]
[Result "0-1"]
[WhiteElo "1552"]
[BlackElo "1472"]
[TimeControl "720+3"]
[EndTime "8:18:02 PDT"]
[Termination "Mrtre7 ha vinto per scaccomatto"]

1. e4 {[%clk 0:11:51.3]} 1... c5 {[%clk 0:11:59.9]} 2. Nc3 {[%clk 0:11:51.9]}
2... g6 {[%clk 0:11:53.5]} 3. Nf3 {[%clk 0:11:53.6]} 3... Bg7 {[%clk 0:11:55.4]}
4. Bc4 {[%clk 0:11:54.3]} 4... a6 {[%clk 0:11:49]} 5. a4 {[%clk 0:11:53.7]} 5...
Nc6 {[%clk 0:11:42.6]} 6. d3 {[%clk 0:11:54.7]} 6... e6 {[%clk 0:11:33.2]} 7. h4
{[%clk 0:11:55.6]} 7... Nge7 {[%clk 0:11:32.3]} 8. h5 {[%clk 0:11:57.2]} 8... h6
{[%clk 0:10:58.8]} 9. hxg6 {[%clk 0:11:58.7]} 9... fxg6 {[%clk 0:11:00.6]} 10.
Nh4 {[%clk 0:11:53.6]} 10... d5 {[%clk 0:10:48]} 11. exd5 {[%clk 0:11:51.4]}
11... exd5 {[%clk 0:10:39.5]} 12. Ba2 {[%clk 0:11:50.3]} 12... Nb4 {[%clk
0:08:41.7]} 13. O-O {[%clk 0:11:38.2]} 13... Nxa2 {[%clk 0:08:42.1]} 14. Rxa2
{[%clk 0:11:38.8]} 14... g5 {[%clk 0:08:04.7]} 15. Qh5+ {[%clk 0:11:38.4]} 15...
Kf8 {[%clk 0:07:55.1]} 16. Ng6+ {[%clk 0:11:18.4]} 16... Nxg6 {[%clk 0:07:53.5]}
17. Qxg6 {[%clk 0:11:19.7]} 17... Qe7 {[%clk 0:07:08.1]} 18. Bd2 {[%clk
0:11:19.3]} 18... Qe6 {[%clk 0:06:30]} 19. Qh5 {[%clk 0:11:12.1]} 19... Bd7
{[%clk 0:05:13.8]} 20. Re1 {[%clk 0:11:09.8]} 20... Qf5 {[%clk 0:04:38.8]} 21.
Ne2 {[%clk 0:10:20.6]} 21... Re8 {[%clk 0:04:27.8]} 22. Ng3 {[%clk 0:10:19.1]}
22... Rxe1+ {[%clk 0:04:21.2]} 23. Bxe1 {[%clk 0:10:19.7]} 23... Qe6 {[%clk
0:03:49.8]} 24. Bc3 {[%clk 0:10:18.4]} 24... d4 {[%clk 0:03:50]} 25. Ba5 {[%clk
0:10:19.5]} 25... Qxa2 {[%clk 0:03:46.9]} 26. Qg6 {[%clk 0:10:16.6]} 26... Qf7
{[%clk 0:03:43.9]} 27. Qb6 {[%clk 0:10:16.9]} 27... Bf6 {[%clk 0:03:36.3]} 28.
Qxc5+ {[%clk 0:10:15.3]} 28... Kg7 {[%clk 0:03:38.6]} 29. Ne4 {[%clk 0:10:14.2]}
29... Qe7 {[%clk 0:03:12.8]} 30. Qb6 {[%clk 0:09:58.6]} 30... Rc8 {[%clk
0:02:57.8]} 31. Qa7 {[%clk 0:09:53.4]} 31... Rxc2 {[%clk 0:02:56.5]} 32. Bb6
{[%clk 0:09:50.8]} 32... Rc1+ {[%clk 0:02:44.5]} 33. Kh2 {[%clk 0:09:51.9]}
33... Qe5+ {[%clk 0:02:41.8]} 34. g3 {[%clk 0:09:52.5]} 34... Qf5 {[%clk
0:02:32]} 35. Qxb7 {[%clk 0:09:50.5]} 35... Qh3# {[%clk 0:02:31.2]} 0-1

[Event "Sabato rapido!"]
[Site "Chess.com"]
[Date "2020.05.30"]
[Round "6"]
[White "caramante"]
[Black "sergiodone"]
[Result "1-0"]
[WhiteElo "1557"]
[BlackElo "1428"]
[TimeControl "720+3"]
[EndTime "8:22:54 PDT"]
[Termination "caramante ha vinto per abbandono"]

1. Nf3 {[%clk 0:12:02.9]} 1... c5 {[%clk 0:11:48.6]} 2. e4 {[%clk 0:12:01.4]}
2... d6 {[%clk 0:11:45.4]} 3. d3 {[%clk 0:12:03.3]} 3... g6 {[%clk 0:11:43.1]}
4. g3 {[%clk 0:12:05.2]} 4... Bg7 {[%clk 0:11:44.7]} 5. Bg2 {[%clk 0:12:07.3]}
5... Nf6 {[%clk 0:11:46.4]} 6. c3 {[%clk 0:12:09.4]} 6... Nc6 {[%clk 0:11:46.3]}
7. O-O {[%clk 0:12:10.8]} 7... Bd7 {[%clk 0:11:47.8]} 8. Re1 {[%clk 0:12:12.7]}
8... Qc7 {[%clk 0:11:47.3]} 9. h3 {[%clk 0:12:13.6]} 9... O-O {[%clk 0:11:41.4]}
10. Be3 {[%clk 0:12:13.1]} 10... b5 {[%clk 0:11:41.4]} 11. Nbd2 {[%clk
0:12:13.8]} 11... Rab8 {[%clk 0:11:42.7]} 12. Rc1 {[%clk 0:12:13.7]} 12... a6
{[%clk 0:11:43.7]} 13. d4 {[%clk 0:12:11.5]} 13... c4 {[%clk 0:11:31.8]} 14. d5
{[%clk 0:12:06]} 14... Nd8 {[%clk 0:11:28.9]} 15. Nd4 {[%clk 0:12:03.8]} 15...
Qc8 {[%clk 0:11:29.2]} 16. Kh2 {[%clk 0:12:04.3]} 16... e5 {[%clk 0:11:25]} 17.
dxe6 {[%clk 0:11:35.6]} 17... fxe6 {[%clk 0:11:25.8]} 18. f4 {[%clk 0:11:29.7]}
18... e5 {[%clk 0:11:27.2]} 19. Ne2 {[%clk 0:11:18.7]} 19... Bc6 {[%clk
0:10:06.3]} 20. g4 {[%clk 0:11:00.5]} 20... Nf7 {[%clk 0:09:40.2]} 21. Ng3
{[%clk 0:10:59.5]} 21... exf4 {[%clk 0:09:31.5]} 22. Bxf4 {[%clk 0:10:58.5]}
22... Ne5 {[%clk 0:09:32.9]} 23. Bxe5 {[%clk 0:10:56.7]} 23... dxe5 {[%clk
0:09:33.9]} 24. Rf1 {[%clk 0:10:54.6]} 24... Qc7 {[%clk 0:09:09.1]} 25. Qe2
{[%clk 0:10:55.9]} 25... Rbd8 {[%clk 0:09:06.5]} 26. Nf3 {[%clk 0:10:52.7]}
26... Rd3 {[%clk 0:09:02.5]} 27. Rcd1 {[%clk 0:10:45.1]} 27... Rfd8 {[%clk
0:09:01.1]} 28. Rxd3 {[%clk 0:10:43.6]} 28... cxd3 {[%clk 0:09:02.2]} 29. Qe3
{[%clk 0:10:31.7]} 29... Bb7 {[%clk 0:08:52]} 30. Rd1 {[%clk 0:10:24.4]} 30...
Qd6 {[%clk 0:08:45.1]} 31. g5 {[%clk 0:09:46.2]} 31... Nd7 {[%clk 0:08:28.1]}
32. Rxd3 {[%clk 0:09:43.7]} 32... Qe6 {[%clk 0:07:51.4]} 33. Qd2 {[%clk
0:09:18.2]} 33... Bc6 {[%clk 0:07:37.3]} 34. h4 {[%clk 0:08:58.1]} 34... Rc8
{[%clk 0:07:34]} 35. Bh3 {[%clk 0:08:57.2]} 35... Qf7 {[%clk 0:07:12.4]} 36. Kg2
{[%clk 0:08:40.1]} 36... Rd8 {[%clk 0:05:43.2]} 37. Rd6 {[%clk 0:08:35.5]} 37...
Qf4 {[%clk 0:04:50.3]} 38. Qd3 {[%clk 0:08:11.2]} 38... Bxe4 {[%clk 0:03:27.2]}
39. Nxe4 {[%clk 0:07:53.2]} 39... Bf8 {[%clk 0:02:56.5]} 40. Rxd7 {[%clk
0:07:40.9]} 40... Rxd7 {[%clk 0:02:53.2]} 41. Qxd7 {[%clk 0:07:35.6]} 41... Qxe4
{[%clk 0:02:49.5]} 42. Be6+ {[%clk 0:07:17.3]} 42... Kh8 {[%clk 0:02:48.5]} 43.
Qf7 {[%clk 0:07:12.7]} 1-0

[Event "Sabato rapido!"]
[Site "Chess.com"]
[Date "2020.05.30"]
[Round "6"]
[White "Carbon"]
[Black "APipitone"]
[Result "1-0"]
[WhiteElo "1765"]
[BlackElo "1502"]
[TimeControl "720+3"]
[EndTime "8:27:44 PDT"]
[Termination "Carbon ha vinto per abbandono"]

1. e4 {[%clk 0:12:01.7]} 1... c5 {[%clk 0:11:59.2]} 2. Nf3 {[%clk 0:11:55.7]}
2... d6 {[%clk 0:11:59.6]} 3. c3 {[%clk 0:11:51.7]} 3... e6 {[%clk 0:11:57.8]}
4. d4 {[%clk 0:11:52.1]} 4... cxd4 {[%clk 0:11:58.4]} 5. cxd4 {[%clk 0:11:54.2]}
5... Nf6 {[%clk 0:11:52.4]} 6. Nc3 {[%clk 0:11:55.8]} 6... Nc6 {[%clk
0:11:49.6]} 7. Bd3 {[%clk 0:11:38.2]} 7... Be7 {[%clk 0:11:48.4]} 8. O-O {[%clk
0:11:32.8]} 8... O-O {[%clk 0:11:48.7]} 9. Bg5 {[%clk 0:11:16.8]} 9... a6 {[%clk
0:11:46.2]} 10. Rc1 {[%clk 0:11:08.4]} 10... Bd7 {[%clk 0:11:45.6]} 11. Re1
{[%clk 0:10:57.5]} 11... b5 {[%clk 0:11:43.7]} 12. e5 {[%clk 0:09:49.2]} 12...
dxe5 {[%clk 0:11:16.9]} 13. dxe5 {[%clk 0:09:50.1]} 13... Nd5 {[%clk 0:10:36.4]}
14. Bxe7 {[%clk 0:09:11.8]} 14... Qxe7 {[%clk 0:10:31.2]} 15. Nxd5 {[%clk
0:08:59.6]} 15... exd5 {[%clk 0:10:31.7]} 16. Qe2 {[%clk 0:08:24.6]} 16... Rac8
{[%clk 0:10:07.6]} 17. Qe3 {[%clk 0:07:54.1]} 17... Bg4 {[%clk 0:09:32.4]} 18.
Nd4 {[%clk 0:07:43.1]} 18... Nxd4 {[%clk 0:09:20.2]} 19. Qxd4 {[%clk 0:07:43.2]}
19... Be6 {[%clk 0:08:56.5]} 20. f4 {[%clk 0:07:40.3]} 20... Rxc1 {[%clk
0:08:56.3]} 21. Rxc1 {[%clk 0:07:40.7]} 21... Rd8 {[%clk 0:08:11.4]} 22. f5
{[%clk 0:07:35.6]} 22... Bc8 {[%clk 0:08:04.2]} 23. f6 {[%clk 0:06:32.1]} 23...
Qe6 {[%clk 0:07:04]} 24. Qh4 {[%clk 0:05:36.3]} 24... gxf6 {[%clk 0:05:48.7]}
25. Bxh7+ {[%clk 0:04:36.7]} 25... Kf8 {[%clk 0:03:58]} 26. Qh6+ {[%clk
0:04:09]} 26... Ke8 {[%clk 0:03:51.9]} 27. exf6 {[%clk 0:03:18.4]} 27... Bb7
{[%clk 0:03:39.7]} 28. Qf4 {[%clk 0:02:36.6]} 28... d4 {[%clk 0:03:16.4]} 29.
Bf5 {[%clk 0:02:03.7]} 29... Qe3+ {[%clk 0:02:57.7]} 30. Qxe3+ {[%clk
0:02:01.5]} 30... dxe3 {[%clk 0:02:57.8]} 31. Re1 {[%clk 0:02:03.4]} 31... Rd2
{[%clk 0:02:25.8]} 32. Rxe3+ {[%clk 0:02:02.5]} 32... Kd8 {[%clk 0:02:02.9]} 33.
Rd3+ {[%clk 0:02:00.7]} 33... Rxd3 {[%clk 0:02:03]} 34. Bxd3 {[%clk 0:02:02.7]}
34... Bd5 {[%clk 0:01:59.1]} 35. a3 {[%clk 0:02:01.6]} 35... Kc7 {[%clk
0:01:54.2]} 36. g4 {[%clk 0:02:02.7]} 36... Kd6 {[%clk 0:01:54.1]} 37. Kf2
{[%clk 0:01:55.8]} 37... Ke5 {[%clk 0:01:55.4]} 38. g5 {[%clk 0:01:56.4]} 38...
Kf4 {[%clk 0:01:56.2]} 39. g6 {[%clk 0:01:47.5]} 39... fxg6 {[%clk 0:01:56.5]}
40. Bxg6 {[%clk 0:01:49]} 40... Kg5 {[%clk 0:01:49.4]} 41. f7 {[%clk 0:01:48.6]}
1-0